fUSD/lending_fUSD_20260108
["ID","MTS","AMOUNT","RATE_DAILY","PERIOD"]
[400890968,1767853846314,-500.0,0.00017999,2]
[400890970,1767853846324,-500.0,0.00017999,2]
[400890972,1767853846335,-500.0,0.00017999,2]
[400890974,1767853846344,-500.0,0.00017999,2]
[400890976,1767853846353,-338.00886573,0.00017999,2]
[400890978,1767853846362,-300.0,0.00017999,2]
[400890980,1767853846371,-300.0,0.00017999,2]
[400890982,1767853846381,-300.0,0.00017999,2]
[400890984,1767853846391,-666.0,0.00017999,2]
[400890986,1767853846400,-300.0,0.00017999,2]
[400890988,1767853846410,-1000.0,0.00017999,2]
[400890990,1767853846420,-300.0,0.00017999,2]
[400890992,1767853846429,-300.0,0.00017999,2]
[400890994,1767853846439,-666.0,0.00017999,2]
[400890996,1767853846449,-151.0,0.00017999,2]
[400890998,1767853846459,-323.167466,0.00017999,2]
[400891000,1767853846468,-323.167466,0.00017999,2]
[400891002,1767853846478,-5970.77362135,0.00017999,2]
[400891005,1767853846489,-154.67877044,0.00018,2]
[400891007,1767853846499,-5585214.32058134,0.00018,2]
[400891009,1767853846514,-517.10757899,0.00018,2]
[400891011,1767853846526,-4055.09999963,0.00018,2]
[400891015,1767853846551,-1635.89675423,0.00018,2]
[400891017,1767853846562,-3551.91440625,0.00018,2]
[400891020,1767853846574,-4584.70772879,0.00018,2]
[400891022,1767853846586,-11999.20073747,0.00018,2]
[400891058,1767853846920,-542.89957297,0.00013588,2]
[400891060,1767853846930,-151.0,0.00015239,2]
[400891062,1767853846939,-323.167466,0.00017999,2]
[400891064,1767853846949,-323.167466,0.00017999,2]
[400891066,1767853846959,-7703.05384333,0.00018,2]
[400891096,1767853847250,-551008.94753269,0.00018,2]
[400891221,1767853848483,-1405.0,0.00017463,2]
[400891223,1767853848492,-405.0,0.00018,2]
[400891243,1767853848675,-374.09274648,0.00017304,2]
[400891246,1767853848693,-168.20025352,0.00017304,2]
[400891247,1767853848703,-1141.76474648,0.00018,2]
[400891254,1767853848758,-341.04,0.00018,2]
[400891256,1767853848769,-45125.0,0.00018,2]
[400891259,1767853848781,-500.0,0.00018,2]
[400891261,1767853848792,-4069.35546928,0.00018,2]
[400891280,1767853848967,-310.546,0.00012529,2]
[400891282,1767853848979,-689.454,0.00012529,2]
[400891284,1767853848988,-8042.41715927,0.00018,2]
[400891286,1767853848999,-1960.922376,0.00018,2]
[400891288,1767853849010,-581.45672485,0.00018,2]
[400891291,1767853849021,-1963.25480074,0.00018,2]
[400891293,1767853849032,-652.2842564,0.00018,2]
[400891295,1767853849044,-324.66719438,0.00018,2]
[400891496,1767853851124,958.7938,0.00012529,2]
[400891724,1767853857590,9041.2162,0.00012529,2]
[400891725,1767853857646,10000.01,0.00012529,2]
[400891726,1767853857698,1109.8485,0.00012529,2]
[400891727,1767853863481,2500.0,0.00012529,2]
[400891737,1767853952700,500.0,0.00012628,2]
[400891739,1767853952776,191.76481661,0.00012628,2]
[400891741,1767853952852,500.0,0.00012628,2]
[400891744,1767853952927,500.0,0.00012628,2]
[400891746,1767853953002,500.0,0.00012628,2]
[400891748,1767853953083,500.0,0.00012628,2]
[400891751,1767853953184,500.0,0.00012628,2]
[400891753,1767853953270,500.0,0.00012628,2]
[400891755,1767853953363,500.0,0.00012628,2]
[400891757,1767853953446,320.37937559,0.00012628,2]
[400891800,1767853958731,2987.8658078,0.00012529,2]
[400891801,1767853958784,10000.01,0.00012529,2]
[400891802,1767853958837,10000.01,0.00012529,2]
[400891803,1767853958887,10000.01,0.00012529,2]
[400891805,1767853958937,592.4864922,0.00012529,2]
[400891822,1767853979432,9407.5235078,0.00012529,2]
[400891823,1767853979494,10000.01,0.00012529,2]
[400891824,1767853979551,10000.01,0.00012529,2]
[400891825,1767853979605,10000.01,0.00012529,2]
[400891826,1767853979661,10000.01,0.00012529,2]
[400891827,1767853979715,10000.01,0.00012529,2]
[400891828,1767853979769,10000.01,0.00012529,2]
[400891829,1767853979826,10000.01,0.00012529,2]
[400891830,1767853979881,10000.01,0.00012529,2]
[400891831,1767853979936,10000.01,0.00012529,2]
[400891832,1767853986267,-300.0,0.00012528,2]
[400891833,1767853986344,-150.0,0.00012528,2]
[400891834,1767853994381,1200.0,0.00012528,2]
[400891844,1767854009772,1354.79594817,0.00032877,120]
[400891877,1767854029438,387.91067374,0.00012429,2]
[400891878,1767854031766,387.91067374,0.00012429,2]
[400891882,1767854041466,300.0,0.00012528,2]
[400891888,1767854081813,302.73697745,0.00012528,2]
[400891889,1767854081889,230.08738104,0.00012528,2]
[400891890,1767854081963,297.48242146,0.00012528,2]
[400891891,1767854082036,500.0,0.00012528,2]
[400891892,1767854082453,521.83311958,0.00012528,2]
[400891893,1767854084470,500.0,0.00012528,2]
[400891894,1767854084572,500.0,0.00012528,2]
[400891895,1767854084964,500.0,0.00012528,2]
[400891896,1767854085049,500.0,0.00012528,2]
[400891897,1767854085127,500.0,0.00012528,2]
[400891898,1767854085215,500.0,0.00012528,2]
[400891899,1767854085309,500.0,0.00012528,2]
[400891900,1767854085390,500.0,0.00012528,2]
[400891901,1767854085471,500.0,0.00012528,2]
[400891902,1767854085560,500.0,0.00012528,2]
[400891903,1767854085644,500.0,0.00012528,2]
[400891904,1767854085726,500.0,0.00012528,2]
[400891905,1767854085829,500.0,0.00012528,2]
[400891906,1767854085913,500.0,0.00012528,2]
[400891907,1767854086000,72.04875299,0.00012528,2]
[400891908,1767854086053,427.95124701,0.00012528,2]
[400891909,1767854086131,500.0,0.00012528,2]
[400891910,1767854086219,500.0,0.00012528,2]
[400891911,1767854086324,341.72679078,0.00012528,2]
[400891912,1767854086416,500.0,0.00012528,2]
[400891913,1767854086509,500.0,0.00012528,2]
[400891914,1767854086605,500.0,0.00012528,2]
[400891915,1767854088580,208.0,9.989e-05,2]
[400891916,1767854088874,208.0,9.989e-05,2]
[400891917,1767854098177,240.46264939,0.00012528,2]
[400891918,1767854101389,1200.0,0.00012528,2]
[400891919,1767854101452,300.0,0.00012528,2]
[400891920,1767854114035,2585.3429,0.00012429,2]
[400891921,1767854137630,202.37576797,0.00012429,2]
[400891922,1767854162119,150.0,0.00012528,2]
[400891923,1767854184779,320.87081092,0.00012429,2]
[400891924,1767854192076,320.87081092,0.00012429,2]
[400891925,1767854214233,994.40902301,0.00012429,2]
[400891926,1767854214290,10000.01,0.00012429,2]
[400891927,1767854214346,3803.46245053,0.00012429,2]
[400891928,1767854236143,6196.54754947,0.00012519,2]
[400891929,1767854236197,10000.01,0.00012519,2]
[400891930,1767854236255,10000.01,0.00012519,2]
[400891931,1767854236318,10000.01,0.00012519,2]
[400891932,1767854236375,10000.01,0.00012519,2]
[400891933,1767854236811,1719.97534076,0.00012519,2]
[400891937,1767854281470,1199.02494906,0.00012429,2]
[400891938,1767854294432,1200.0,0.00012528,2]
[400891939,1767854313331,194.76545046,0.00012429,2]
[400891940,1767854341482,300.0,0.00012528,2]
[400891941,1767854342301,150.0,0.00012528,2]
[400891942,1767854342429,240.65310819,0.00012429,2]
[400891943,1767854345160,240.65310819,0.00012429,2]
[400891944,1767854346773,4754.93804334,0.00012429,2]
[400891945,1767854346824,10000.01,0.00012429,2]
[400891946,1767854346875,100.21713781,0.00012429,2]
[400891947,1767854401315,1200.0,0.00012528,2]
[400891948,1767854401383,300.0,0.00012528,2]
[400891949,1767854401449,300.0,0.00012528,2]
[400891950,1767854403507,253.0,0.00012529,2]
[400891951,1767854441925,2500.0,0.00012429,2]
[400891952,1767854447972,194.76545046,0.00012429,2]
[400891953,1767854461655,300.0,0.00012528,2]
[400891954,1767854491770,180.48983116,0.00012429,2]
[400891955,1767854493089,3177.578,0.00012278,2]
[400891956,1767854493259,164.17,0.00012278,2]
[400891957,1767854498587,180.48983116,0.00012429,2]
[400891958,1767854521679,300.0,0.00012528,2]
[400891959,1767854522115,150.0,0.00012528,2]
[400891962,1767854594420,699.29974941,0.00012528,2]
[400891963,1767854594477,500.70025059,0.00012528,2]
[400891964,1767854605190,9499.30974941,0.00012429,2]
[400891965,1767854605255,3818.78357674,0.00012429,2]
[400891966,1767854624735,1000.0,0.0001235,2]
[400891967,1767854624929,1000.0,0.00012147,2]
[400891968,1767854645978,154.70556953,0.00012429,2]
[400891969,1767854647203,154.70556953,0.00012429,2]
[400891970,1767854701334,300.0,0.00012528,2]
[400891971,1767854701409,300.0,0.00012528,2]
[400891972,1767854702050,150.0,0.00012528,2]
[400891973,1767854706319,1200.0,0.00012528,2]
[400891981,1767854756563,185.0,0.00032877,120]
[400891983,1767854792460,154.70556949,0.00012429,2]
[400891984,1767854794614,154.70556949,0.00012429,2]
[400891985,1767854821358,300.0,0.00012528,2]
[400891987,1767854858496,166.66,0.00012329,2]
[400891988,1767854858897,166.66,0.00012494,2]
[400891989,1767854864008,979.08414522,0.00012429,2]
[400891990,1767854864063,10000.01,0.00012429,2]
[400891991,1767854864120,2390.55451777,0.00012429,2]
[400891992,1767854874230,230.21,0.00032877,120]
[400891993,1767854877080,500.0,0.00012402,2]
[400891994,1767854881579,300.0,0.00012528,2]
[400891995,1767854882043,150.0,0.00012528,2]
[400891996,1767854894819,1200.0,0.00012528,2]
[400891997,1767854913192,154.70556949,0.00012429,2]
[400891998,1767854937722,5304.74991274,0.00012368,2]
[400891999,1767854937777,10000.01,0.00012368,2]
[400892000,1767854937830,5004.75008726,0.00012368,2]
[400892001,1767854941767,300.0,0.00012528,2]
[400892002,1767854967262,3935.89,0.00012366,2]
[400892003,1767854992664,759.36991274,0.00012429,2]
[400892004,1767854992723,10000.01,0.00012429,2]
[400892005,1767854992778,10000.01,0.00012429,2]
[400892006,1767854992837,10000.01,0.00012429,2]
[400892007,1767854992893,10000.01,0.00012429,2]
[400892008,1767854992950,10000.01,0.00012429,2]
[400892009,1767854993006,10000.01,0.00012429,2]
[400892010,1767854993065,10000.01,0.00012429,2]
[400892011,1767854993126,10000.01,0.00012429,2]
[400892012,1767854993190,10000.01,0.00012429,2]
[400892013,1767854993561,-162.4877364,0.00012429,2]
[400892014,1767855023684,5267.20072437,0.00012217,2]
[400892015,1767855023709,957.33927563,0.00012217,2]
[400892017,1767855031334,-300.0,0.00012428,2]
[400892018,1767855031344,-1200.0,0.00012428,2]
[400892019,1767855031354,-252.0,0.00012428,2]
[400892020,1767855031363,-1200.94751725,0.00012429,2]
[400892021,1767855031374,-684.90508682,0.00012429,2]
[400892022,1767855031385,-6898.52423276,0.00012429,2]
[400892023,1767855031425,-3201.90715675,0.00012429,2]
[400892024,1767855031436,-8282.11652525,0.00012429,2]
[400892025,1767855031447,-1618.14212,0.00012429,2]
[400892026,1767855031492,-565.39403671,0.00012429,2]
[400892027,1767855031503,-879.1913564,0.00012429,2]
[400892028,1767855031559,-828.85681179,0.00012429,2]
[400892029,1767855031570,-433.60596329,0.00012429,2]
[400892030,1767855031582,-16526.30864085,0.00012429,2]
[400892031,1767855031594,-651.02931078,0.00012429,2]
[400892032,1767855031628,-497.76627144,0.00012429,2]
[400892087,1767855038638,-2232.00553519,0.00012429,2]
[400892088,1767855038669,-876563.63577916,0.00012429,2]
[400892089,1767855038684,-1000.0,0.00012529,2]
[400892090,1767855038694,-33580.3823,0.00012529,2]
[400892091,1767855038704,-300.0,0.00012535,2]
[400892092,1767855038713,-188.94617776,0.00012541,2]
[400892093,1767855038723,-250.0,0.00012553,2]
[400892094,1767855038732,-300.0,0.00012592,2]
[400892095,1767855038742,-200.0,0.00012652,2]
[400892096,1767855038752,-166.66,0.0001266,2]
[400892097,1767855038762,-250.0,0.00012686,2]
[400892098,1767855038772,-18319.69,0.00012806,2]
[400892099,1767855038782,-166.66,0.00012826,2]
[400892100,1767855038792,-166.66,0.00012991,2]
[400892101,1767855038801,-166.66,0.00013032,2]
[400892102,1767855038811,-13369.64866295,0.00013037,2]
[400892103,1767855038820,-11986.28399351,0.00013037,2]
[400892104,1767855038829,-601.80098484,0.00013131,2]
[400892105,1767855038838,-166.66,0.00013157,2]
[400892106,1767855038848,-150827.76526735,0.00013165,2]
[400892107,1767855038858,-1000.0,0.00013231,2]
[400892108,1767855038867,-18841.29,0.00013234,2]
[400892109,1767855038877,-299.99,0.00013234,2]
[400892110,1767855038888,-150.0,0.00013247,2]
[400892111,1767855038900,-5708.28,0.00013247,2]
[400892112,1767855038910,-9999.99,0.00013247,2]
[400892113,1767855038919,-150.99,0.00013247,2]
[400892114,1767855038929,-337.42,0.00013247,2]
[400892115,1767855038939,-7905.49,0.00013247,2]
[400892116,1767855038949,-150.99,0.00013247,2]
[400892117,1767855038959,-8882.54,0.00013247,2]
[400892118,1767855038970,-1015.95543626,0.00013265,2]
[400892119,1767855038979,-19075.55,0.00013275,2]
[400892120,1767855038989,-84023.7,0.00013275,2]
[400892121,1767855038999,-1465.64,0.00013275,2]
[400892122,1767855039008,-999.99,0.00013275,2]
[400892123,1767855039018,-2621.34,0.00013275,2]
[400892124,1767855039028,-9999.99,0.00013275,2]
[400892125,1767855039037,-2095.37,0.00013275,2]
[400892126,1767855039047,-9999.99,0.00013275,2]
[400892127,1767855039056,-5990.99,0.00013288,2]
[400892128,1767855039066,-203.41974767,0.00013424,2]
[400892129,1767855039075,-153.19668317,0.00013424,2]
[400892130,1767855039085,-500.0,0.00013424,2]
[400892131,1767855039095,-500.0,0.00013424,2]
[400892132,1767855039104,-150.0,0.00013424,2]
[400892133,1767855039114,-500.0,0.00013424,2]
[400892134,1767855039123,-150.0,0.00013424,2]
[400892135,1767855039132,-500.0,0.00013424,2]
[400892136,1767855039142,-222.12982038,0.00013424,2]
[400892137,1767855039151,-500.0,0.00013424,2]
[400892138,1767855039161,-500.0,0.00013424,2]
[400892139,1767855039171,-221.72177176,0.00013424,2]
[400892140,1767855039181,-1403.83,0.00013424,2]
[400892141,1767855039191,-500.0,0.00013424,2]
[400892142,1767855039201,-166.66,0.00013462,2]
[400892143,1767855039211,-500.0,0.00013479,2]
[400892144,1767855039220,-500.0,0.00013479,2]
[400892145,1767855039230,-500.0,0.00013479,2]
[400892146,1767855039239,-150.0,0.00013479,2]
[400892147,1767855039249,-500.0,0.00013479,2]
[400892148,1767855039259,-500.0,0.00013479,2]
[400892149,1767855039268,-500.0,0.00013479,2]
[400892150,1767855039278,-500.0,0.00013479,2]
[400892151,1767855039287,-1000.0,0.0001348,2]
[400892152,1767855039296,-150.49525617,0.00013508,2]
[400892153,1767855039306,-150.0,0.00013508,2]
[400892154,1767855039315,-150.0,0.00013508,2]
[400892155,1767855039325,-150.0,0.00013508,2]
[400892156,1767855039335,-500.0,0.00013508,2]
[400892157,1767855039344,-288.61019467,0.00013508,2]
[400892158,1767855039354,-150.0,0.00013508,2]
[400892159,1767855039365,-2018.55,0.00013524,2]
[400892160,1767855039375,-500.0,0.00013534,2]
[400892161,1767855039384,-500.0,0.00013534,2]
[400892162,1767855039393,-216.31193931,0.00013534,2]
[400892163,1767855039403,-150.0,0.00013534,2]
[400892164,1767855039413,-500.0,0.00013534,2]
[400892165,1767855039423,-182.10117033,0.00013534,2]
[400892166,1767855039432,-500.0,0.00013534,2]
[400892167,1767855039442,-500.0,0.00013534,2]
[400892168,1767855039451,-231.03492311,0.00013563,2]
[400892169,1767855039460,-150.0,0.00013563,2]
[400892170,1767855039482,-184.06920116,0.00013563,2]
[400892171,1767855039492,-500.0,0.00013563,2]
[400892172,1767855039501,-150.0,0.00013563,2]
[400892173,1767855039511,-500.0,0.00013588,2]
[400892174,1767855039520,-500.0,0.00013588,2]
[400892175,1767855039529,-500.0,0.00013588,2]
[400892176,1767855039539,-500.0,0.00013588,2]
[400892177,1767855039549,-500.0,0.00013588,2]
[400892178,1767855039558,-600.0,0.00013596,2]
[400892179,1767855039568,-240.4,0.00013596,2]
[400892180,1767855039578,-150.0,0.00013618,2]
[400892181,1767855039587,-500.0,0.00013618,2]
[400892182,1767855039597,-206.22263087,0.00013618,2]
[400892183,1767855039607,-255.0,0.00013618,2]
[400892184,1767855039616,-420.0,0.00013637,2]
[400892185,1767855039625,-500.0,0.00013643,2]
[400892186,1767855039635,-500.0,0.00013643,2]
[400892187,1767855039645,-500.0,0.00013643,2]
[400892188,1767855039655,-500.0,0.00013643,2]
[400892189,1767855039664,-500.0,0.00013643,2]
[400892190,1767855039674,-13369.64866295,0.00013645,2]
[400892191,1767855039683,-11986.28399351,0.00013645,2]
[400892192,1767855039692,-1680.0,0.00013671,2]
[400892193,1767855039702,-150.0,0.00013672,2]
[400892194,1767855039712,-500.0,0.00013672,2]
[400892195,1767855039722,-219.97512683,0.00013698,2]
[400892196,1767855039731,-500.0,0.00013698,2]
[400892197,1767855039741,-500.0,0.00013698,2]
[400892198,1767855039752,-500.0,0.00013698,2]
[400892199,1767855039761,-500.0,0.00013698,2]
[400892200,1767855039771,-500.0,0.00013698,2]
[400892201,1767855039780,-500.0,0.00013698,2]
[400892202,1767855039789,-500.0,0.00013698,2]
[400892203,1767855039799,-410.25491874,0.00013698,2]
[400892204,1767855039810,-500.0,0.00013698,2]
[400892205,1767855039820,-500.0,0.00013698,2]
[400892206,1767855039829,-500.0,0.00013698,2]
[400892207,1767855039839,-500.0,0.00013698,2]
[400892208,1767855039848,-500.0,0.00013698,2]
[400892209,1767855039858,-500.0,0.00013698,2]
[400892210,1767855039867,-500.0,0.00013698,2]
[400892211,1767855039877,-500.0,0.00013698,2]
[400892212,1767855039886,-500.0,0.00013698,2]
[400892213,1767855039896,-500.0,0.00013698,2]
[400892215,1767855039906,-500.0,0.00013698,2]
[400892216,1767855039915,-500.0,0.00013698,2]
[400892217,1767855039925,-500.0,0.00013698,2]
[400892218,1767855039934,-500.0,0.00013698,2]
[400892219,1767855039945,-500.0,0.00013698,2]
[400892221,1767855039955,-211.60955392,0.00013698,2]
[400892222,1767855039964,-500.0,0.00013698,2]
[400892223,1767855039973,-198.43935064,0.00013698,2]
[400892224,1767855039982,-500.0,0.00013698,2]
[400892225,1767855039991,-500.0,0.00013698,2]
[400892226,1767855040000,-184.55624416,0.00013698,2]
[400892227,1767855040010,-1403.83,0.00013698,2]
[400892228,1767855040019,-200.0,0.00013699,2]
[400892229,1767855040028,-967.74,0.000137,2]
[400892230,1767855040037,-967.74,0.000137,2]
[400892231,1767855040046,-200.589792,0.00013709,2]
[400892232,1767855040055,-13392.66,0.00013712,2]
[400892233,1767855040064,-150.0,0.00013727,2]
[400892234,1767855040073,-500.0,0.00013727,2]
[400892235,1767855040083,-1680.0,0.00013746,2]
[400892236,1767855040092,-500.0,0.00013753,2]
[400892237,1767855040101,-500.0,0.00013753,2]
[400892238,1767855040111,-500.0,0.00013753,2]
[400892239,1767855040121,-500.0,0.00013753,2]
[400892240,1767855040133,-2500.0,0.00013782,2]
[400892241,1767855040142,-5000.0,0.00013782,2]
[400892242,1767855040151,-676.2914001,0.00013782,2]
[400892243,1767855040160,-300.0,0.00013782,2]
[400892244,1767855040170,-193.0,0.00013782,2]
[400892245,1767855040179,-195.0,0.00013782,2]
[400892246,1767855040189,-300.0,0.00013782,2]
[400892247,1767855040198,-250.0,0.00013782,2]
[400892248,1767855040208,-300.0,0.00013782,2]
[400892249,1767855040217,-300.0,0.00013782,2]
[400892250,1767855040226,-300.0,0.00013782,2]
[400892251,1767855040235,-300.0,0.00013782,2]
[400892252,1767855040244,-193.0,0.00013782,2]
[400892253,1767855040254,-195.0,0.00013782,2]
[400892254,1767855040263,-2500.0,0.00013782,2]
[400892255,1767855040272,-2500.0,0.00013782,2]
[400892256,1767855040280,-2500.0,0.00013782,2]
[400892257,1767855040290,-300.0,0.00013782,2]
[400892258,1767855040299,-152.17141778,0.00013782,2]
[400892259,1767855040309,-5000.0,0.00013782,2]
[400892260,1767855040319,-195.0,0.00013782,2]
[400892261,1767855040328,-300.0,0.00013782,2]
[400892262,1767855040337,-195.0,0.00013782,2]
[400892263,1767855040346,-189.0183163,0.00013782,2]
[400892264,1767855040356,-500.0,0.00013782,2]
[400892265,1767855040365,-500.0,0.00013808,2]
[400892266,1767855040374,-500.0,0.00013808,2]
[400892267,1767855040384,-500.0,0.00013808,2]
[400892268,1767855040394,-500.0,0.00013808,2]
[400892269,1767855040403,-500.0,0.00013837,2]
[400892270,1767855040413,-500.0,0.00013862,2]
[400892271,1767855040422,-500.0,0.00013862,2]
[400892272,1767855040431,-500.0,0.00013862,2]
[400892273,1767855040440,-500.0,0.00013862,2]
[400892274,1767855040449,-500.0,0.00013892,2]
[400892275,1767855040459,-166.66,0.00013892,2]
[400892276,1767855040472,-500.0,0.00013917,2]
[400892277,1767855040486,-500.0,0.00013917,2]
[400892278,1767855040495,-500.0,0.00013917,2]
[400892279,1767855040504,-500.0,0.00013917,2]
[400892280,1767855040513,-601.80098479,0.00013926,2]
[400892281,1767855040524,-1109.21532538,0.00013941,2]
[400892282,1767855040534,-500.0,0.00013946,2]
[400892283,1767855040543,-500.0,0.00013972,2]
[400892284,1767855040552,-500.0,0.00013972,2]
[400892285,1767855040561,-500.0,0.00013972,2]
[400892286,1767855040570,-500.0,0.00013972,2]
[400892287,1767855040579,-1403.83,0.00013972,2]
[400892288,1767855040591,-500.0,0.00014001,2]
[400892289,1767855040600,-500.0,0.00014027,2]
[400892290,1767855040610,-500.0,0.00014027,2]
[400892291,1767855040619,-360.0,0.00014027,2]
[400892292,1767855040628,-500.0,0.00014027,2]
[400892293,1767855040638,-500.0,0.00014056,2]
[400892294,1767855040647,-500.0,0.00014082,2]
[400892295,1767855040658,-500.0,0.00014082,2]
[400892296,1767855040667,-500.0,0.00014082,2]
[400892297,1767855040676,-209.91190666,0.00014111,2]
[400892298,1767855040686,-1000.0,0.00014125,2]
[400892299,1767855040695,-440.06247596,0.00014136,2]
[400892300,1767855040705,-500.0,0.00014136,2]
[400892301,1767855040714,-500.0,0.00014136,2]
[400892302,1767855040723,-246.55,0.00014179,2]
[400892303,1767855040733,-500.0,0.00014191,2]
[400892304,1767855040742,-471.85856957,0.00014191,2]
[400892305,1767855040751,-500.0,0.00014246,2]
[400892306,1767855040761,-1403.83,0.00014246,2]
[400892307,1767855040770,-13369.64866295,0.00014253,2]
[400892308,1767855040779,-11986.28399351,0.00014253,2]
[400892309,1767855040789,-312.84,0.00014271,2]
[400892310,1767855040799,-350.0,0.00014301,2]
[400892311,1767855040808,-3459.3575382,0.00014315,2]
[400892312,1767855040817,-166.66,0.00014322,2]
[400892313,1767855040827,-1000.0,0.00014426,2]
[400892314,1767855040838,-1076.0,0.00014488,2]
[400892315,1767855040848,-3696.35,0.00014497,2]
[400892316,1767855040858,-1403.83,0.0001452,2]
[400892317,1767855040867,-1076.0,0.00014543,2]
[400892318,1767855040876,-1000.0,0.00014579,2]
[400892319,1767855040886,-1076.0,0.00014598,2]
[400892320,1767855040895,-9988.81,0.000146,2]
[400892321,1767855040906,-1000.0,0.00014651,2]
[400892322,1767855040917,-1076.0,0.00014652,2]
[400892323,1767855040926,-1076.0,0.00014707,2]
[400892324,1767855040936,-601.80098479,0.00014721,2]
[400892325,1767855040945,-166.66,0.00014753,2]
[400892326,1767855040954,-1076.0,0.00014762,2]
[400892327,1767855040963,-469.13395033,0.00014763,2]
[400892328,1767855040972,-500.0,0.00014763,2]
[400892329,1767855040982,-556.63084022,0.00014763,2]
[400892330,1767855040991,-500.0,0.00014763,2]
[400892331,1767855041000,-500.0,0.00014763,2]
[400892332,1767855041009,-500.0,0.00014763,2]
[400892333,1767855041018,-500.0,0.00014763,2]
[400892334,1767855041028,-500.0,0.00014763,2]
[400892335,1767855041037,-500.0,0.00014763,2]
[400892336,1767855041046,-500.0,0.00014763,2]
[400892337,1767855041055,-629.4325829,0.00014763,2]
[400892338,1767855041065,-165.70843486,0.00014763,2]
[400892339,1767855041074,-500.0,0.00014763,2]
[400892340,1767855041083,-486.22003068,0.00014763,2]
[400892341,1767855041439,-500.0,0.00014763,2]
[400892342,1767855041448,-500.0,0.00014763,2]
[400892343,1767855041458,-500.0,0.00014763,2]
[400892344,1767855041467,-500.0,0.00014763,2]
[400892345,1767855041477,-500.0,0.00014763,2]
[400892346,1767855041487,-500.0,0.00014763,2]
[400892347,1767855041496,-500.0,0.00014763,2]
[400892348,1767855041505,-1403.83,0.00014794,2]
[400892349,1767855041517,-433.0,0.00014808,2]
[400892350,1767855041526,-1076.0,0.00014817,2]
[400892351,1767855041536,-13369.64866295,0.00014861,2]
[400892352,1767855041545,-11986.28399351,0.00014861,2]
[400892353,1767855041554,-1076.0,0.00014872,2]
[400892354,1767855041564,-1076.0,0.00014926,2]
[400892355,1767855041576,-587.0,0.00014964,2]
[400892356,1767855041585,-1076.0,0.00014981,2]
[400892357,1767855041596,-1076.0,0.00015036,2]
[400892358,1767855041606,-2351.0,0.00015038,2]
[400892359,1767855041617,-1403.83,0.00015068,2]
[400892360,1767855041626,-654.79,0.00015068,2]
[400892361,1767855041636,-2351.0,0.00015082,2]
[400892362,1767855041645,-1076.0,0.00015091,2]
[400892363,1767855041655,-500.0,0.00015099,2]
[400892364,1767855041665,-363.73176274,0.00015099,2]
[400892365,1767855041674,-1076.0,0.00015146,2]
[400892366,1767855041685,-154.70556947,0.00015165,2]
[400892367,1767855041695,-166.66,0.00015183,2]
[400892368,1767855041705,-1041.84647568,0.00015196,2]
[400892369,1767855041714,-815.67605987,0.00015196,2]
[400892370,1767855041724,-1076.0,0.000152,2]
[400892371,1767855041735,-151.0,0.00015218,2]
[400892372,1767855041744,-151.0,0.00015218,2]